[Event "Late-Titled-Tuesday-Blitz-October-24-2023"]
[Site "Chess.com"]
[Date "2023.10.24"]
[Round "8"]
[White "IgorBjelobrk"]
[Black "victormago"]
[Result "1-0"]
[WhiteElo "2600"]
[BlackElo "2427"]
[TimeControl "180+1"]
[EndTime "15:26:28 PDT"]
[Termination "IgorBjelobrk won on time"]

1. d4 {[%clk 0:02:54.4]} 1... Nf6 {[%clk 0:02:58.5]} 2. c4 {[%clk 0:02:53]} 2...
c5 {[%clk 0:02:58]} 3. d5 {[%clk 0:02:50.9]} 3... e6 {[%clk 0:02:56.9]} 4. Nc3
{[%clk 0:02:49.7]} 4... exd5 {[%clk 0:02:57.4]} 5. cxd5 {[%clk 0:02:49.3]} 5...
d6 {[%clk 0:02:58]} 6. Nf3 {[%clk 0:02:48.7]} 6... g6 {[%clk 0:02:58.5]} 7. g3
{[%clk 0:02:47.9]} 7... Bg7 {[%clk 0:02:58.1]} 8. Bg2 {[%clk 0:02:48.1]} 8...
O-O {[%clk 0:02:58.3]} 9. O-O {[%clk 0:02:46.8]} 9... Re8 {[%clk 0:02:58.7]} 10.
Re1 {[%clk 0:02:44.8]} 10... Ne4 {[%clk 0:02:57.1]} 11. Nxe4 {[%clk 0:02:43.3]}
11... Rxe4 {[%clk 0:02:58]} 12. Qc2 {[%clk 0:02:43.8]} 12... Bf5 {[%clk
0:02:43.9]} 13. Bh3 {[%clk 0:02:40.7]} 13... Re5 {[%clk 0:02:23]} 14. Bxf5
{[%clk 0:02:37.7]} 14... Rxf5 {[%clk 0:02:23.4]} 15. Kg2 {[%clk 0:02:35.2]}
15... Rxd5 {[%clk 0:02:06.1]} 16. e4 {[%clk 0:02:34.2]} 16... Rh5 {[%clk
0:01:52.8]} 17. g4 {[%clk 0:02:28.1]} 17... Qc8 {[%clk 0:01:36.8]} 18. h3 {[%clk
0:02:23.4]} 18... Rh6 {[%clk 0:01:27.4]} 19. Bxh6 {[%clk 0:02:01.8]} 19... Bxh6
{[%clk 0:01:26.1]} 20. Rad1 {[%clk 0:02:02.4]} 20... Bf8 {[%clk 0:01:19.5]} 21.
b4 {[%clk 0:01:56.6]} 21... Nc6 {[%clk 0:01:16]} 22. b5 {[%clk 0:01:56.6]} 22...
Nd8 {[%clk 0:01:10.6]} 23. Rd5 {[%clk 0:01:49]} 23... Ne6 {[%clk 0:01:08.7]} 24.
Rdd1 {[%clk 0:01:36.7]} 24... h5 {[%clk 0:01:05.3]} 25. Kg3 {[%clk 0:01:34.1]}
25... hxg4 {[%clk 0:01:00.1]} 26. hxg4 {[%clk 0:01:33.4]} 26... Qc7 {[%clk
0:00:56.6]} 27. Rd5 {[%clk 0:01:32.3]} 27... a6 {[%clk 0:00:52.4]} 28. Rb1
{[%clk 0:01:23.1]} 28... axb5 {[%clk 0:00:50.9]} 29. Rxb5 {[%clk 0:01:24]} 29...
Ra3 {[%clk 0:00:50.2]} 30. Rb3 {[%clk 0:01:21.6]} 30... Ra6 {[%clk 0:00:41.6]}
31. Qb1 {[%clk 0:01:19.9]} 31... b6 {[%clk 0:00:41.6]} 32. Rbd3 {[%clk
0:01:02.4]} 32... Ra4 {[%clk 0:00:33.7]} 33. Rd1 {[%clk 0:00:58.2]} 33... Ra3
{[%clk 0:00:24]} 34. R5d3 {[%clk 0:00:56.2]} 34... Ra4 {[%clk 0:00:23.2]} 35.
Rd5 {[%clk 0:00:54.4]} 35... Ra3 {[%clk 0:00:21]} 36. R1d3 {[%clk 0:00:54.6]}
36... Ra4 {[%clk 0:00:20.3]} 37. Rb3 {[%clk 0:00:52]} 37... Ra6 {[%clk
0:00:18.8]} 38. a3 {[%clk 0:00:33.2]} 38... Bg7 {[%clk 0:00:08.6]} 39. Rbd3
{[%clk 0:00:31.1]} 39... Nd4 {[%clk 0:00:08.1]} 40. Nxd4 {[%clk 0:00:30.3]}
40... Bxd4 {[%clk 0:00:08.2]} 41. Qc1 {[%clk 0:00:26.1]} 41... Qe7 {[%clk
0:00:04.1]} 42. f3 {[%clk 0:00:19.2]} 42... Be5+ {[%clk 0:00:02.7]} 43. Kg2
{[%clk 0:00:19.6]} 1-0

[Event "Late-Titled-Tuesday-Blitz-October-24-2023"]
[Site "Chess.com"]
[Date "2023.10.24"]
[Round "8"]
[White "ExchangeAB"]
[Black "Inepton_Fermion"]
[Result "0-1"]
[WhiteElo "2492"]
[BlackElo "2372"]
[TimeControl "180+1"]
[EndTime "15:26:30 PDT"]
[Termination "Inepton_Fermion won by resignation"]

1. d4 {[%clk 0:03:00.9]} 1... Nf6 {[%clk 0:02:51.6]} 2. Nc3 {[%clk 0:02:58.2]}
2... d5 {[%clk 0:02:48.4]} 3. Bf4 {[%clk 0:02:58]} 3... a6 {[%clk 0:02:46.6]} 4.
e3 {[%clk 0:02:58.1]} 4... e6 {[%clk 0:02:46.3]} 5. Nf3 {[%clk 0:02:57.8]} 5...
c5 {[%clk 0:02:41.3]} 6. dxc5 {[%clk 0:02:56.3]} 6... Bxc5 {[%clk 0:02:42.2]} 7.
Bd3 {[%clk 0:02:56.6]} 7... b5 {[%clk 0:02:38]} 8. O-O {[%clk 0:02:54.9]} 8...
Bb7 {[%clk 0:02:35.8]} 9. Ne5 {[%clk 0:02:44.4]} 9... O-O {[%clk 0:02:26.4]} 10.
Qe2 {[%clk 0:02:39.8]} 10... Nbd7 {[%clk 0:02:18.6]} 11. a3 {[%clk 0:02:38.1]}
11... b4 {[%clk 0:02:13.8]} 12. axb4 {[%clk 0:02:35.2]} 12... Bxb4 {[%clk
0:02:14.7]} 13. Nb1 {[%clk 0:02:26.6]} 13... Nc5 {[%clk 0:02:00.2]} 14. c3
{[%clk 0:02:16.6]} 14... Nxd3 {[%clk 0:01:58.8]} 15. Qxd3 {[%clk 0:02:15.8]}
15... Bd6 {[%clk 0:01:57.3]} 16. Nd2 {[%clk 0:02:10.9]} 16... Qc7 {[%clk
0:01:54.7]} 17. Ndf3 {[%clk 0:02:09.1]} 17... Nh5 {[%clk 0:01:29.5]} 18. Rfc1
{[%clk 0:01:10.6]} 18... f6 {[%clk 0:01:18.1]} 19. Ng4 {[%clk 0:01:05.3]} 19...
e5 {[%clk 0:01:08.9]} 20. Qf5 {[%clk 0:01:00.8]} 20... g6 {[%clk 0:00:43.4]} 21.
Qe6+ {[%clk 0:00:27.9]} 21... Kh8 {[%clk 0:00:43.5]} 22. Ngxe5 {[%clk
0:00:18.9]} 22... fxe5 {[%clk 0:00:32.8]} 23. Nxe5 {[%clk 0:00:06.3]} 23... Nxf4
{[%clk 0:00:29]} 24. exf4 {[%clk 0:00:06.3]} 24... Rae8 {[%clk 0:00:23.6]} 25.
Nxg6+ {[%clk 0:00:03.1]} 25... hxg6 {[%clk 0:00:22.4]} 26. Qxg6 {[%clk 0:00:04]}
26... Bxf4 {[%clk 0:00:17.4]} 27. Re1 {[%clk 0:00:03.6]} 27... Rxe1+ {[%clk
0:00:09.6]} 28. Rxe1 {[%clk 0:00:04.5]} 28... Qg7 {[%clk 0:00:06.2]} 29. Qxg7+
{[%clk 0:00:04.6]} 29... Kxg7 {[%clk 0:00:07.1]} 30. g3 {[%clk 0:00:05.3]} 30...
Bg5 {[%clk 0:00:05.2]} 31. Re5 {[%clk 0:00:05.1]} 31... Bf6 {[%clk 0:00:05.1]}
32. Re3 {[%clk 0:00:03.6]} 32... Rf7 {[%clk 0:00:05.2]} 33. f4 {[%clk
0:00:03.8]} 33... Re7 {[%clk 0:00:05.6]} 34. Rd3 {[%clk 0:00:03.8]} 34... Re2
{[%clk 0:00:04]} 35. h3 {[%clk 0:00:03.8]} 35... d4 {[%clk 0:00:03.8]} 36. cxd4
{[%clk 0:00:03.5]} 36... Rg2+ {[%clk 0:00:04.1]} 37. Kf1 {[%clk 0:00:04.2]}
37... Rxb2 {[%clk 0:00:04.2]} 38. g4 {[%clk 0:00:04.5]} 38... a5 {[%clk
0:00:03.4]} 39. g5 {[%clk 0:00:05.1]} 39... Ba6 {[%clk 0:00:03.5]} 40. gxf6+
{[%clk 0:00:04.6]} 40... Kxf6 {[%clk 0:00:04.4]} 41. Ke1 {[%clk 0:00:05.1]}
41... Bxd3 {[%clk 0:00:04.7]} 0-1

[Event "Late-Titled-Tuesday-Blitz-October-24-2023"]
[Site "Chess.com"]
[Date "2023.10.24"]
[Round "8"]
[White "Zhbugnoimt"]
[Black "Kostukov_Alex"]
[Result "1/2-1/2"]
[WhiteElo "2537"]
[BlackElo "2440"]
[TimeControl "180+1"]
[EndTime "15:26:32 PDT"]
[Termination "Game drawn by repetition"]

1. e4 {[%clk 0:02:34.3]} 1... c5 {[%clk 0:02:59.3]} 2. Nf3 {[%clk 0:02:34.5]}
2... g6 {[%clk 0:02:59.4]} 3. c3 {[%clk 0:02:32.4]} 3... Bg7 {[%clk 0:02:58.5]}
4. d4 {[%clk 0:02:32.7]} 4... cxd4 {[%clk 0:02:59.4]} 5. cxd4 {[%clk 0:02:33.6]}
5... d5 {[%clk 0:02:59.6]} 6. e5 {[%clk 0:02:34.3]} 6... Bg4 {[%clk 0:02:56.1]}
7. Be2 {[%clk 0:02:34.6]} 7... Nc6 {[%clk 0:02:55.6]} 8. Be3 {[%clk 0:02:32.4]}
8... Nh6 {[%clk 0:02:55.3]} 9. Qb3 {[%clk 0:02:27.6]} 9... Bxf3 {[%clk
0:02:18.2]} 10. Bxf3 {[%clk 0:02:26.6]} 10... Nf5 {[%clk 0:02:08.7]} 11. Bxd5
{[%clk 0:02:22.8]} 11... Nfxd4 {[%clk 0:01:48.2]} 12. Bxd4 {[%clk 0:02:18.1]}
12... Nxd4 {[%clk 0:01:47.7]} 13. Qa4+ {[%clk 0:02:15.6]} 13... Nc6 {[%clk
0:01:36.5]} 14. Bxc6+ {[%clk 0:02:15.9]} 14... bxc6 {[%clk 0:01:36]} 15. Qxc6+
{[%clk 0:02:16.8]} 15... Kf8 {[%clk 0:01:36.2]} 16. Qe4 {[%clk 0:02:10.6]} 16...
Qa5+ {[%clk 0:01:29.1]} 17. Nc3 {[%clk 0:02:05.5]} 17... Qxe5 {[%clk 0:01:28.1]}
18. O-O-O {[%clk 0:01:52.5]} 18... Rc8 {[%clk 0:01:19.7]} 19. Kb1 {[%clk
0:01:24.5]} 19... Qb8 {[%clk 0:01:02.5]} 20. Na4 {[%clk 0:01:17]} 20... Bf6
{[%clk 0:00:46]} 21. h4 {[%clk 0:01:10.8]} 21... h5 {[%clk 0:00:45.1]} 22. f3
{[%clk 0:00:34.1]} 22... Kg7 {[%clk 0:00:41.8]} 23. g4 {[%clk 0:00:34.7]} 23...
hxg4 {[%clk 0:00:19.2]} 24. Qxg4 {[%clk 0:00:26.6]} 24... Rh5 {[%clk 0:00:18.8]}
25. f4 {[%clk 0:00:19.3]} 25... Qb4 {[%clk 0:00:16]} 26. Qxc8 {[%clk 0:00:15.7]}
26... Qxa4 {[%clk 0:00:14.1]} 27. Rhf1 {[%clk 0:00:11.3]} 27... Rb5 {[%clk
0:00:12.9]} 28. Rd2 {[%clk 0:00:11.7]} 28... Qe4+ {[%clk 0:00:11.9]} 29. Ka1
{[%clk 0:00:09.4]} 29... Qe3 {[%clk 0:00:10.2]} 30. Rc2 {[%clk 0:00:06.5]} 30...
Rxb2 {[%clk 0:00:09.7]} 31. Rxb2 {[%clk 0:00:06.4]} 31... Bxb2+ {[%clk
0:00:09.8]} 32. Kxb2 {[%clk 0:00:06.6]} 32... Qe2+ {[%clk 0:00:10.3]} 33. Kb3
{[%clk 0:00:03.7]} 33... Qxf1 {[%clk 0:00:11.2]} 34. Qc3+ {[%clk 0:00:02.9]}
34... Kg8 {[%clk 0:00:10.3]} 35. Qe5 {[%clk 0:00:03.4]} 35... e6 {[%clk
0:00:08.8]} 36. a4 {[%clk 0:00:03.1]} 36... Qb1+ {[%clk 0:00:07.1]} 37. Kc4
{[%clk 0:00:03.2]} 37... Qb6 {[%clk 0:00:07.1]} 38. a5 {[%clk 0:00:02.6]} 38...
Qc6+ {[%clk 0:00:05.7]} 39. Qc5 {[%clk 0:00:02.5]} 39... Qe4+ {[%clk 0:00:04.9]}
40. Qd4 {[%clk 0:00:03]} 40... Qc6+ {[%clk 0:00:04.2]} 41. Qc5 {[%clk
0:00:03.4]} 41... Qa4+ {[%clk 0:00:04.7]} 42. Qb4 {[%clk 0:00:02.8]} 42... Qc6+
{[%clk 0:00:04.7]} 43. Qc5 {[%clk 0:00:03.4]} 1/2-1/2

[Event "Late-Titled-Tuesday-Blitz-October-24-2023"]
[Site "Chess.com"]
[Date "2023.10.24"]
[Round "8"]
[White "Escudito"]
[Black "protectiago"]
[Result "1-0"]
[WhiteElo "2467"]
[BlackElo "2054"]
[TimeControl "180+1"]
[EndTime "15:26:34 PDT"]
[Termination "Escudito won on time"]

1. d4 {[%clk 0:03:00.9]} 1... Nf6 {[%clk 0:02:59.4]} 2. c4 {[%clk 0:02:52.4]}
2... g6 {[%clk 0:02:59.3]} 3. Nc3 {[%clk 0:02:52.4]} 3... d5 {[%clk 0:02:58.6]}
4. cxd5 {[%clk 0:02:50.8]} 4... Nxd5 {[%clk 0:02:58.7]} 5. Bd2 {[%clk
0:02:51.6]} 5... Bg7 {[%clk 0:02:58.2]} 6. e4 {[%clk 0:02:51.4]} 6... Nxc3
{[%clk 0:02:57.6]} 7. Bxc3 {[%clk 0:02:52.3]} 7... O-O {[%clk 0:02:57.4]} 8. Qd2
{[%clk 0:02:51.3]} 8... e6 {[%clk 0:02:48.4]} 9. f4 {[%clk 0:02:50.3]} 9... b6
{[%clk 0:02:45.7]} 10. Nf3 {[%clk 0:02:50.1]} 10... Qe7 {[%clk 0:02:42.9]} 11.
Bd3 {[%clk 0:02:47.3]} 11... Ba6 {[%clk 0:02:41.5]} 12. O-O {[%clk 0:02:42.9]}
12... Rd8 {[%clk 0:02:39.8]} 13. Bxa6 {[%clk 0:02:40.1]} 13... Nxa6 {[%clk
0:02:39.3]} 14. Qe2 {[%clk 0:02:40.5]} 14... Nb8 {[%clk 0:02:34.9]} 15. Rad1
{[%clk 0:02:31.2]} 15... Nd7 {[%clk 0:02:34.6]} 16. Ne5 {[%clk 0:02:23.9]} 16...
Nxe5 {[%clk 0:02:32.4]} 17. fxe5 {[%clk 0:02:11.3]} 17... Rd7 {[%clk 0:02:19.7]}
18. Rf3 {[%clk 0:02:07.3]} 18... Rad8 {[%clk 0:02:19.5]} 19. Rfd3 {[%clk
0:02:06.8]} 19... Qg5 {[%clk 0:02:09]} 20. Bd2 {[%clk 0:01:44.4]} 20... Qh4
{[%clk 0:01:55.2]} 21. g3 {[%clk 0:01:38.7]} 21... Qe7 {[%clk 0:01:53.8]} 22.
Be3 {[%clk 0:01:37.6]} 22... c5 {[%clk 0:01:49.1]} 23. dxc5 {[%clk 0:01:36.5]}
23... Rxd3 {[%clk 0:01:46.1]} 24. Rxd3 {[%clk 0:01:37.4]} 24... Rxd3 {[%clk
0:01:31.8]} 25. Qxd3 {[%clk 0:01:38.3]} 25... bxc5 {[%clk 0:01:31.7]} 26. Qd6
{[%clk 0:01:06.3]} 26... Qf8 {[%clk 0:00:19.2]} 27. Bxc5 {[%clk 0:01:00.8]}
27... Qa8 {[%clk 0:00:18]} 28. Qd4 {[%clk 0:00:46]} 28... a6 {[%clk 0:00:15.6]}
29. b4 {[%clk 0:00:44.2]} 29... Bh6 {[%clk 0:00:13.6]} 30. Kg2 {[%clk
0:00:37.2]} 30... Bc1 {[%clk 0:00:12.7]} 31. a4 {[%clk 0:00:36.2]} 31... Qc8
{[%clk 0:00:08.5]} 32. Qd6 {[%clk 0:00:28.2]} 32... Ba3 {[%clk 0:00:07.6]} 33.
Kf3 {[%clk 0:00:25.3]} 33... Kg7 {[%clk 0:00:07.2]} 34. a5 {[%clk 0:00:22.4]}
34... h6 {[%clk 0:00:07]} 35. Qe7 {[%clk 0:00:21.8]} 35... Bb2 {[%clk
0:00:03.8]} 36. Qf6+ {[%clk 0:00:15.9]} 36... Kg8 {[%clk 0:00:04.1]} 37. Qe7
{[%clk 0:00:13.2]} 37... Bc3 {[%clk 0:00:03.8]} 38. Qd6 {[%clk 0:00:12.3]} 38...
Qb7 {[%clk 0:00:03.5]} 39. Qf8+ {[%clk 0:00:08.8]} 39... Kh7 {[%clk 0:00:03.8]}
40. Be7 {[%clk 0:00:08.7]} 40... g5 {[%clk 0:00:02.8]} 41. Qxf7+ {[%clk
0:00:08.3]} 1-0

[Event "Late-Titled-Tuesday-Blitz-October-24-2023"]
[Site "Chess.com"]
[Date "2023.10.24"]
[Round "8"]
[White "tteshan"]
[Black "karinachess1"]
[Result "1-0"]
[WhiteElo "2525"]
[BlackElo "2617"]
[TimeControl "180+1"]
[EndTime "15:26:39 PDT"]
[Termination "tteshan won by resignation"]

1. e4 {[%clk 0:03:00.9]} 1... e5 {[%clk 0:03:00]} 2. Nf3 {[%clk 0:03:01]} 2...
Nc6 {[%clk 0:03:00.2]} 3. Bb5 {[%clk 0:03:01]} 3... Nf6 {[%clk 0:03:00.2]} 4.
O-O {[%clk 0:03:00.6]} 4... Nxe4 {[%clk 0:03:00.2]} 5. Re1 {[%clk 0:02:58.9]}
5... Nd6 {[%clk 0:03:00.2]} 6. Nxe5 {[%clk 0:02:58.8]} 6... Nxe5 {[%clk
0:02:58.9]} 7. Rxe5+ {[%clk 0:02:59.7]} 7... Be7 {[%clk 0:02:59.5]} 8. Bf1
{[%clk 0:03:00]} 8... O-O {[%clk 0:02:58.6]} 9. d4 {[%clk 0:03:00.4]} 9... Bf6
{[%clk 0:02:53]} 10. Re1 {[%clk 0:03:01]} 10... Re8 {[%clk 0:02:53.5]} 11. c3
{[%clk 0:03:01]} 11... c6 {[%clk 0:02:44.3]} 12. Bf4 {[%clk 0:03:00.1]} 12...
Rxe1 {[%clk 0:02:43.8]} 13. Qxe1 {[%clk 0:03:01]} 13... Ne8 {[%clk 0:02:44.3]}
14. Nd2 {[%clk 0:02:55.7]} 14... d5 {[%clk 0:02:44.4]} 15. Nf3 {[%clk
0:02:56.4]} 15... Be6 {[%clk 0:02:35.9]} 16. Bd3 {[%clk 0:02:54.6]} 16... Nd6
{[%clk 0:02:28.3]} 17. a4 {[%clk 0:02:52.9]} 17... a5 {[%clk 0:02:25.5]} 18. h3
{[%clk 0:02:46]} 18... Qd7 {[%clk 0:02:09.5]} 19. Ne5 {[%clk 0:02:36.7]} 19...
Qe7 {[%clk 0:01:45.9]} 20. Qe2 {[%clk 0:02:13.5]} 20... Bf5 {[%clk 0:01:40.9]}
21. Nxc6 {[%clk 0:01:54.9]} 21... bxc6 {[%clk 0:00:51.3]} 22. Qxe7 {[%clk
0:01:49.7]} 22... Bxe7 {[%clk 0:00:50]} 23. Bxd6 {[%clk 0:01:49.7]} 23... Bxd6
{[%clk 0:00:45.3]} 24. Bxf5 {[%clk 0:01:49.6]} 24... Rb8 {[%clk 0:00:45.8]} 25.
Bd7 {[%clk 0:01:31.4]} 25... Rxb2 {[%clk 0:00:45.5]} 26. Bxc6 {[%clk 0:01:31.5]}
26... Rc2 {[%clk 0:00:45.9]} 27. Bxd5 {[%clk 0:01:27.9]} 27... Rxc3 {[%clk
0:00:45.2]} 28. Bf3 {[%clk 0:01:23.5]} 28... g6 {[%clk 0:00:41.4]} 29. Kf1
{[%clk 0:01:18.1]} 29... Rd3 {[%clk 0:00:35.8]} 30. d5 {[%clk 0:01:09.6]} 30...
Bb4 {[%clk 0:00:33.8]} 31. Rc1 {[%clk 0:01:03.4]} 31... Kf8 {[%clk 0:00:16.7]}
32. Ke2 {[%clk 0:00:38.3]} 32... Rd2+ {[%clk 0:00:15.7]} 33. Ke3 {[%clk
0:00:33.7]} 33... Ke7 {[%clk 0:00:16.1]} 34. Rc7+ {[%clk 0:00:30.9]} 34... Kf6
{[%clk 0:00:16.5]} 35. Rc6+ {[%clk 0:00:23.4]} 35... Ke5 {[%clk 0:00:15.6]} 36.
Rc4 {[%clk 0:00:20.6]} 36... f5 {[%clk 0:00:15]} 37. Rxb4 {[%clk 0:00:19.3]}
37... Ra2 {[%clk 0:00:03.5]} 38. Rc4 {[%clk 0:00:18.4]} 38... f4+ {[%clk
0:00:02.7]} 39. Kd3 {[%clk 0:00:18.9]} 39... Rxf2 {[%clk 0:00:01.6]} 40. Re4+
{[%clk 0:00:17.9]} 40... Kf5 {[%clk 0:00:01.6]} 41. d6 {[%clk 0:00:15.6]} 41...
Rb2 {[%clk 0:00:01.9]} 42. d7 {[%clk 0:00:13.2]} 42... Rb3+ {[%clk 0:00:02.5]}
43. Kc4 {[%clk 0:00:12.6]} 43... Rb4+ {[%clk 0:00:02.7]} 44. Kc5 {[%clk
0:00:12.1]} 44... Rb8 {[%clk 0:00:03.6]} 45. Kc6 {[%clk 0:00:12]} 45... g5
{[%clk 0:00:02.8]} 46. Re8 {[%clk 0:00:11.8]} 1-0

[Event "Late-Titled-Tuesday-Blitz-October-24-2023"]
[Site "Chess.com"]
[Date "2023.10.24"]
[Round "8"]
[White "mbojan"]
[Black "Meri-Arabidze"]
[Result "0-1"]
[WhiteElo "2764"]
[BlackElo "2636"]
[TimeControl "180+1"]
[EndTime "15:26:41 PDT"]
[Termination "Meri-Arabidze won by checkmate"]

1. Nf3 {[%clk 0:03:00.9]} 1... b6 {[%clk 0:02:59.4]} 2. g3 {[%clk 0:02:57.4]}
2... Bb7 {[%clk 0:02:59.6]} 3. Bg2 {[%clk 0:02:58.2]} 3... Nf6 {[%clk
0:02:59.6]} 4. O-O {[%clk 0:02:58.8]} 4... g6 {[%clk 0:03:00]} 5. d3 {[%clk
0:02:58.2]} 5... d5 {[%clk 0:02:59]} 6. c4 {[%clk 0:02:58.7]} 6... dxc4 {[%clk
0:02:54.6]} 7. Qa4+ {[%clk 0:02:58.8]} 7... Nbd7 {[%clk 0:02:53.6]} 8. Qxc4
{[%clk 0:02:59.1]} 8... e6 {[%clk 0:02:38.1]} 9. Nc3 {[%clk 0:02:52.3]} 9... Bg7
{[%clk 0:02:36.5]} 10. Nb5 {[%clk 0:02:15.4]} 10... Nd5 {[%clk 0:02:35.9]} 11.
e4 {[%clk 0:02:11.4]} 11... a6 {[%clk 0:02:35.5]} 12. Nbd4 {[%clk 0:02:06.2]}
12... Ne7 {[%clk 0:02:28.4]} 13. Bg5 {[%clk 0:01:42]} 13... c5 {[%clk
0:02:27.3]} 14. Nxe6 {[%clk 0:01:30.5]} 14... fxe6 {[%clk 0:02:28.2]} 15. Qxe6
{[%clk 0:01:31.1]} 15... Nf8 {[%clk 0:02:23.3]} 16. Qb3 {[%clk 0:01:31.2]} 16...
b5 {[%clk 0:02:01.8]} 17. Rac1 {[%clk 0:01:27.9]} 17... h6 {[%clk 0:01:56]} 18.
Be3 {[%clk 0:01:25.8]} 18... Nd7 {[%clk 0:01:53.6]} 19. Bh3 {[%clk 0:01:18.4]}
19... Rf8 {[%clk 0:01:50.5]} 20. Nh4 {[%clk 0:01:15.2]} 20... Ne5 {[%clk
0:01:40.5]} 21. Rfd1 {[%clk 0:01:06]} 21... g5 {[%clk 0:01:34.3]} 22. Nf5 {[%clk
0:01:01.5]} 22... Nxf5 {[%clk 0:01:34.4]} 23. Bxf5 {[%clk 0:01:02.4]} 23... Rxf5
{[%clk 0:00:38.2]} 24. Qe6+ {[%clk 0:01:01.2]} 24... Qe7 {[%clk 0:00:38]} 25.
Qxf5 {[%clk 0:01:01.3]} 25... Bc8 {[%clk 0:00:37.7]} 26. Qh7 {[%clk 0:00:59.2]}
26... Bg4 {[%clk 0:00:33.1]} 27. Qg8+ {[%clk 0:00:18.5]} 27... Qf8 {[%clk
0:00:33.2]} 28. Qd5 {[%clk 0:00:18.7]} 28... Rd8 {[%clk 0:00:33.3]} 29. Qb7
{[%clk 0:00:19]} 29... Bxd1 {[%clk 0:00:29.9]} 30. Rxd1 {[%clk 0:00:19.6]} 30...
Qf3 {[%clk 0:00:19.6]} 31. Rd2 {[%clk 0:00:19.9]} 31... Rd7 {[%clk 0:00:18.2]}
32. Qxa6 {[%clk 0:00:18.7]} 32... Ng4 {[%clk 0:00:14.3]} 33. Qe6+ {[%clk
0:00:17.1]} 33... Re7 {[%clk 0:00:14.5]} 34. Qc8+ {[%clk 0:00:16.8]} 34... Kf7
{[%clk 0:00:14.8]} 35. Bxc5 {[%clk 0:00:16.5]} 35... Bf6 {[%clk 0:00:05.2]} 36.
h3 {[%clk 0:00:12.5]} 36... Ne5 {[%clk 0:00:04.3]} 37. d4 {[%clk 0:00:13]} 37...
Nc4 {[%clk 0:00:04.1]} 38. Bxe7 {[%clk 0:00:11.4]} 38... Nxd2 {[%clk 0:00:04.3]}
39. Qf8+ {[%clk 0:00:11.7]} 39... Ke6 {[%clk 0:00:03.5]} 40. d5+ {[%clk
0:00:11.8]} 40... Ke5 {[%clk 0:00:03.9]} 41. Bxf6+ {[%clk 0:00:04.4]} 41... Qxf6
{[%clk 0:00:04.8]} 42. Qb4 {[%clk 0:00:04.2]} 42... Nxe4 {[%clk 0:00:04.1]} 43.
Qxb5 {[%clk 0:00:04.6]} 43... Qxf2+ {[%clk 0:00:04.1]} 44. Kh1 {[%clk
0:00:04.7]} 44... Nxg3# {[%clk 0:00:04.9]} 0-1

[Event "Late-Titled-Tuesday-Blitz-October-24-2023"]
[Site "Chess.com"]
[Date "2023.10.24"]
[Round "8"]
[White "Giorno"]
[Black "campochess"]
[Result "1-0"]
[WhiteElo "2533"]
[BlackElo "2212"]
[TimeControl "180+1"]
[EndTime "15:26:41 PDT"]
[Termination "Giorno won on time"]

1. Nc3 {[%clk 0:03:00.4]} 1... c5 {[%clk 0:02:59.8]} 2. Nf3 {[%clk 0:02:59.2]}
2... Nc6 {[%clk 0:02:59.8]} 3. d4 {[%clk 0:02:59.5]} 3... cxd4 {[%clk
0:02:58.5]} 4. Nxd4 {[%clk 0:03:00.4]} 4... Nf6 {[%clk 0:02:56.8]} 5. Bg5 {[%clk
0:02:59.2]} 5... e5 {[%clk 0:02:38.5]} 6. Ndb5 {[%clk 0:02:56.4]} 6... d6 {[%clk
0:02:35.4]} 7. Bxf6 {[%clk 0:02:51.5]} 7... gxf6 {[%clk 0:02:33.7]} 8. Nd5
{[%clk 0:02:49.2]} 8... Be6 {[%clk 0:01:45.5]} 9. Nbc7+ {[%clk 0:02:41.8]} 9...
Kd7 {[%clk 0:01:45.4]} 10. Nxa8 {[%clk 0:02:38.1]} 10... Bxd5 {[%clk 0:01:44.8]}
11. Qxd5 {[%clk 0:02:36]} 11... Be7 {[%clk 0:01:36.4]} 12. O-O-O {[%clk
0:02:29.1]} 12... Qxa8 {[%clk 0:01:35.6]} 13. Qxf7 {[%clk 0:02:24.7]} 13... Qf8
{[%clk 0:01:34.8]} 14. Qxf8 {[%clk 0:02:17.2]} 14... Rxf8 {[%clk 0:01:33.4]} 15.
e3 {[%clk 0:02:17.7]} 15... a6 {[%clk 0:01:32.6]} 16. Bc4 {[%clk 0:02:16.5]}
16... f5 {[%clk 0:01:31.2]} 17. a3 {[%clk 0:02:14.3]} 17... Kc7 {[%clk
0:01:25.1]} 18. Bd5 {[%clk 0:02:13.2]} 18... f4 {[%clk 0:01:20.9]} 19. exf4
{[%clk 0:02:11.3]} 19... Rxf4 {[%clk 0:01:19.5]} 20. f3 {[%clk 0:02:11.9]} 20...
Nd4 {[%clk 0:01:16.1]} 21. Kb1 {[%clk 0:02:11.7]} 21... Rf6 {[%clk 0:01:07]} 22.
Be4 {[%clk 0:02:09.7]} 22... h5 {[%clk 0:01:05.3]} 23. h4 {[%clk 0:02:05.4]}
23... Rf8 {[%clk 0:00:59.8]} 24. c3 {[%clk 0:01:57]} 24... Ne2 {[%clk
0:00:58.3]} 25. g4 {[%clk 0:01:06.4]} 25... Ng3 {[%clk 0:00:54.3]} 26. g5 {[%clk
0:00:38.9]} 26... Nxh1 {[%clk 0:00:49.1]} 27. Rxh1 {[%clk 0:00:39.8]} 27... Rf4
{[%clk 0:00:46.8]} 28. g6 {[%clk 0:00:36.8]} 28... Bf8 {[%clk 0:00:46.6]} 29. c4
{[%clk 0:00:31]} 29... b5 {[%clk 0:00:44.4]} 30. b3 {[%clk 0:00:28.8]} 30...
bxc4 {[%clk 0:00:43.2]} 31. bxc4 {[%clk 0:00:29.7]} 31... Kb6 {[%clk 0:00:34.9]}
32. Kc2 {[%clk 0:00:29.8]} 32... Kc5 {[%clk 0:00:31.1]} 33. Kd3 {[%clk
0:00:29.6]} 33... Bh6 {[%clk 0:00:29.5]} 34. a4 {[%clk 0:00:18.5]} 34... Kb4
{[%clk 0:00:23.1]} 35. Rb1+ {[%clk 0:00:14.9]} 35... Ka5 {[%clk 0:00:17.4]} 36.
Rb7 {[%clk 0:00:14.3]} 36... Rxh4 {[%clk 0:00:16.8]} 37. Rh7 {[%clk 0:00:14.3]}
37... Bf8 {[%clk 0:00:09]} 38. g7 {[%clk 0:00:14.5]} 38... Bxg7 {[%clk
0:00:09.1]} 39. Rxg7 {[%clk 0:00:15.4]} 39... Rh2 {[%clk 0:00:08.3]} 40. Rd7
{[%clk 0:00:14.1]} 40... h4 {[%clk 0:00:07.7]} 41. Rxd6 {[%clk 0:00:14.3]} 41...
Kxa4 {[%clk 0:00:07.8]} 42. Rxa6+ {[%clk 0:00:14]} 42... Kb4 {[%clk 0:00:07.9]}
43. Rh6 {[%clk 0:00:13.7]} 43... Kc5 {[%clk 0:00:04.8]} 44. Bd5 {[%clk
0:00:10.9]} 44... Kb4 {[%clk 0:00:01.5]} 45. Rh5 {[%clk 0:00:09.4]} 1-0